[Event "NJSK 2026 Meisjes C"]
[Site "Helmond, Netherlands"]
[Date "2026.04.30"]
[Round "6.1"]
[White "Ganeshram, Niranjana"]
[Black "Luong, Thao"]
[Result "1-0"]
[TimeControl "90min/40moves + 30min + 30sec/move"]
[WhiteTitle "-"]
[BlackTitle "-"]
[WhiteFideId "40100480"]
[BlackFideId "1091980"]
[WhiteElo "1753"]
[BlackElo "1855"]

1. e4 {[%clk 01:30:57]} {[%emt 00:00:02]} e5 {[%clk 01:30:56]} {[%emt
00:00:04]} 2. Nf3 {[%clk 01:31:02]} {[%emt 00:00:27]} Nc6 {[%clk 01:31:20]}
{[%emt 00:00:06]} 3. Bc4 {[%clk 01:31:19]} {[%emt 00:00:12]} Bc5 {[%clk
01:31:45]} {[%emt 00:00:06]} 4. O-O {[%clk 01:31:41]} {[%emt 00:00:07]} d6
{[%clk 01:31:55]} {[%emt 00:00:20]} 5. c3 {[%clk 01:30:04]} {[%emt 00:02:07]}
Bg4 {[%clk 01:29:20]} {[%emt 00:03:06]} 6. d3 {[%clk 01:29:30]} {[%emt
00:01:04]} Nf6 {[%clk 01:28:45]} {[%emt 00:01:04]} 7. Bg5 {[%clk 01:29:37]}
{[%emt 00:00:23]} h6 {[%clk 01:28:34]} {[%emt 00:00:42]} 8. Bh4 {[%clk
01:27:11]} {[%emt 00:02:55]} g5 {[%clk 01:28:35]} {[%emt 00:00:29]} 9. Bg3
{[%clk 01:26:20]} {[%emt 00:01:21]} Qd7 {[%clk 01:21:22]} {[%emt 00:07:43]} 10.
Nbd2 {[%clk 01:23:37]} {[%emt 00:03:12]} Nh5 {[%clk 01:21:20]} {[%emt
00:00:33]} 11. Kh1 {[%emt 00:08:44]} Nf4 {[%clk 01:18:36]} {[%emt 00:03:11]} 12.
Bxf4 {[%clk 01:12:51]} {[%emt 00:03:05]} gxf4 {[%clk 01:18:44]} {[%emt
00:00:21]} 13. b4 {[%clk 01:10:07]} {[%emt 00:03:15]} Bb6 {[%clk 01:19:06]}
{[%emt 00:00:09]} 14. a4 {[%clk 01:08:49]} {[%emt 00:01:48]} a5 {[%clk
01:15:52]} {[%emt 00:03:43]} 15. b5 {[%clk 01:05:15]} {[%emt 00:04:04]} Ne7
{[%clk 01:15:36]} {[%emt 00:00:46]} 16. Qb3 {[%clk 01:00:49]} {[%emt 00:04:56]}
O-O {[%clk 00:55:21]} {[%emt 00:20:45]} 17. d4 {[%clk 00:56:35]} {[%emt
00:04:44]} Ng6 {[%clk 00:51:43]} {[%emt 00:04:08]} 18. Rae1 {[%clk 00:48:00]}
{[%emt 00:09:05]} Qe7 {[%clk 00:47:53]} {[%emt 00:04:20]} 19. Bd5 {[%clk
00:41:01]} {[%emt 00:07:28]} Rab8 {[%clk 00:47:01]} {[%emt 00:01:23]} 20. Qa3
{[%clk 00:34:43]} {[%emt 00:06:49]} Bxf3 {[%clk 00:34:44]} {[%emt 00:12:46]} 21.
Nxf3 {[%clk 00:34:30]} {[%emt 00:00:43]} Nh4 {[%clk 00:31:54]} {[%emt
00:03:21]} 22. dxe5 {[%clk 00:26:41]} {[%emt 00:08:18]} Bc5 {[%clk 00:29:48]}
{[%emt 00:02:36]} 23. exd6 {[%clk 00:22:03]} {[%emt 00:05:08]} cxd6 {[%clk
00:28:31]} {[%emt 00:01:47]} 24. Qc1 {[%clk 00:21:59]} {[%emt 00:00:34]} Nxf3
{[%clk 00:28:36]} {[%emt 00:00:24]} 25. gxf3 {[%clk 00:22:02]} {[%emt
00:00:28]} Qh4 {[%clk 00:28:08]} {[%emt 00:00:58]} 26. Qb2 {[%clk 00:19:17]}
{[%emt 00:03:15]} Qh5 {[%clk 00:26:44]} {[%emt 00:01:53]} 27. Qe2 {[%clk
00:17:40]} {[%emt 00:02:07]} Qe5 {[%clk 00:25:53]} {[%emt 00:01:22]} 28. c4
{[%clk 00:16:35]} {[%emt 00:01:34]} Kh8 {[%clk 00:21:59]} {[%emt 00:04:25]} 29.
Rg1 {[%clk 00:14:41]} {[%emt 00:02:24]} Rg8 {[%clk 00:16:35]} {[%emt 00:05:54]}
30. Bxf7 {[%clk 00:13:53]} {[%emt 00:01:17]} Rg5 {[%clk 00:16:55]} {[%emt
00:00:11]} 31. Rxg5 {[%clk 00:12:45]} {[%emt 00:01:38]} hxg5 {[%clk 00:17:19]}
{[%emt 00:00:06]} 32. Bd5 {[%clk 00:11:40]} {[%emt 00:01:34]} Kg7 {[%clk
00:16:58]} {[%emt 00:00:52]} 33. Rg1 {[%clk 00:10:33]} {[%emt 00:01:37]} Kf6
{[%clk 00:16:10]} {[%emt 00:01:18]} 34. Qf1 {[%clk 00:09:54]} {[%emt 00:01:09]}
Kg6 {[%clk 00:14:34]} {[%emt 00:02:06]} 35. Qg2 {[%clk 00:08:35]} {[%emt
00:01:50]} Rh8 {[%clk 00:11:37]} {[%emt 00:03:27]} 36. Bxb7 {[%clk 00:07:57]}
{[%emt 00:01:08]} Qe7 {[%clk 00:07:38]} {[%emt 00:04:29]} 37. Bd5 {[%clk
00:06:52]} {[%emt 00:01:35]} Qe5 {[%clk 00:06:26]} {[%emt 00:01:41]} 38. Rb1
{[%clk 00:05:39]} {[%emt 00:01:44]} Bb6 {[%clk 00:05:00]} {[%emt 00:01:56]} 39.
Qg4 {[%clk 00:01:53]} {[%emt 00:04:16]} Bxf2 {[%clk 00:03:42]} {[%emt
00:01:48]} 40. Qe6+ {[%clk 00:01:17]} {[%emt 00:01:05]} Qxe6 {[%clk 00:03:51]}
{[%emt 00:00:22]} 41. Bxe6 {[%clk 00:01:45]} {[%emt 00:00:02]} Bb6 {[%clk
00:01:51]} {[%emt 00:02:29]} 42. Rd1 {[%clk 00:01:40]} {[%emt 00:00:35]} Bc5
{[%clk 00:01:31]} {[%emt 00:00:51]} 43. Rd5 {[%clk 00:01:23]} {[%emt 00:00:47]}
Kf6 {[%clk 00:00:31]} {[%emt 00:01:30]} 44. Bg4 {[%clk 00:01:18]} {[%emt
00:00:33]} Re8 {[%clk 00:29:50]} {[%emt 00:01:12]} 45. b6 {[%clk 00:29:55]}
{[%emt 00:01:53]} Re5 {[%clk 00:29:22]} {[%emt 00:00:58]} 46. b7 {[%clk
00:23:39]} {[%emt 00:06:47]} Ba7 {[%clk 00:28:45]} {[%emt 00:01:06]} 47. Rxd6+
{[%clk 00:23:46]} {[%emt 00:00:23]} Ke7 {[%clk 00:28:42]} {[%emt 00:00:33]} 48.
Ra6 {[%clk 00:22:33]} {[%emt 00:01:43]} Bb8 {[%clk 00:27:55]} {[%emt 00:01:17]}
49. Ra8 {[%clk 00:22:57]} {[%emt 00:00:07]} Bd6 {[%clk 00:27:58]} {[%emt
00:00:26]} 50. b8=Q {[%clk 00:22:47]} {[%emt 00:00:41]} Bxb8 {[%clk 00:28:21]}
{[%emt 00:00:06]} 51. Rxb8 {[%clk 00:23:11]} {[%emt 00:00:07]} Kd6 {[%clk
00:27:18]} {[%emt 00:01:33]} 52. Rd8+ {[%clk 00:22:16]} {[%emt 00:01:25]} Kc5
{[%clk 00:26:49]} {[%emt 00:00:59]} 53. Rd5+ {[%clk 00:21:58]} {[%emt
00:00:47]} 1-0

[Event "NJSK 2026 Meisjes C"]
[Site "Helmond, Netherlands"]
[Date "2026.04.30"]
[Round "6.2"]
[White "Panzar, Emilia-Andreea"]
[Black "Ngangbam, Malem"]
[Result "0-1"]
[TimeControl "90min/40moves + 30min + 30sec/move"]
[WhiteTitle "-"]
[BlackTitle "-"]
[WhiteFideId "42210852"]
[BlackFideId "40102343"]
[WhiteElo "1585"]
[BlackElo "1600"]

1. d4 {[%clk 01:30:56]} {[%emt 00:00:04]} e6 {[%clk 01:30:49]} {[%emt
00:00:11]} 2. Nf3 {[%clk 01:30:47]} {[%emt 00:00:39]} Nf6 {[%clk 01:31:07]}
{[%emt 00:00:12]} 3. Bf4 {[%clk 01:30:57]} {[%emt 00:00:20]} d5 {[%clk
01:31:15]} {[%emt 00:00:21]} 4. e3 {[%clk 01:31:00]} {[%emt 00:00:28]} c5
{[%clk 01:31:25]} {[%emt 00:00:20]} 5. Nbd2 {[%clk 01:30:46]} {[%emt 00:00:45]}
Nc6 {[%clk 01:31:26]} {[%emt 00:00:28]} 6. c3 {[%clk 01:30:45]} {[%emt
00:00:32]} Bd6 {[%clk 01:31:25]} {[%emt 00:00:30]} 7. Bg3 {[%clk 01:30:46]}
{[%emt 00:00:30]} Qc7 {[%clk 01:30:59]} {[%emt 00:00:56]} 8. dxc5 {[%clk
01:29:51]} {[%emt 00:01:25]} Bxg3 {[%clk 01:30:36]} {[%emt 00:00:53]} 9. hxg3
{[%clk 01:29:59]} {[%emt 00:00:22]} e5 {[%clk 01:29:11]} {[%emt 00:01:55]} 10.
b4 {[%clk 01:26:40]} {[%emt 00:03:49]} Bg4 {[%clk 01:25:04]} {[%emt 00:04:37]}
11. Be2 {[%clk 01:24:32]} {[%emt 00:02:38]} Rd8 {[%clk 01:19:54]} {[%emt
00:05:38]} 12. Nb3 {[%clk 01:20:07]} {[%emt 00:04:56]} O-O {[%clk 01:12:45]}
{[%emt 00:07:36]} 13. Ng5 {[%clk 01:14:32]} {[%emt 00:06:07]} Bxe2 {[%clk
01:12:43]} {[%emt 00:00:32]} 14. Qxe2 {[%clk 01:14:51]} {[%emt 00:00:11]} h6
{[%clk 01:13:03]} {[%emt 00:00:09]} 15. Nf3 {[%clk 01:14:44]} {[%emt 00:00:38]}
d4 {[%clk 01:02:09]} {[%emt 00:11:24]} 16. cxd4 {[%clk 01:11:24]} {[%emt
00:03:51]} exd4 {[%clk 01:02:02]} {[%emt 00:00:35]} 17. Nfxd4 {[%clk 01:09:48]}
{[%emt 00:02:07]} Nxb4 {[%clk 01:01:45]} {[%emt 00:00:47]} 18. Qc4 {[%clk
01:06:43]} {[%emt 00:03:36]} Nbd5 {[%clk 00:58:58]} {[%emt 00:03:16]} 19. Nf5
{[%clk 00:59:48]} {[%emt 00:07:25]} Qe5 {[%clk 00:50:42]} {[%emt 00:08:46]} 20.
Nbd4 {[%clk 00:59:10]} {[%emt 00:01:09]} Ng4 {[%clk 00:47:47]} {[%emt
00:03:24]} 21. Qe2 {[%clk 00:55:30]} {[%emt 00:04:10]} Ngf6 {[%clk 00:38:44]}
{[%emt 00:09:34]} 22. g4 {[%clk 00:42:25]} {[%emt 00:13:34]} Ne7 {[%clk
00:35:30]} {[%emt 00:03:44]} 23. Nxe7+ {[%clk 00:37:44]} {[%emt 00:05:11]} Qxe7
{[%clk 00:35:28]} {[%emt 00:00:32]} 24. Rc1 {[%clk 00:37:18]} {[%emt 00:00:56]}
Rfe8 {[%clk 00:34:39]} {[%emt 00:01:19]} 25. Nf5 {[%clk 00:32:19]} {[%emt
00:05:29]} Qe4 {[%clk 00:26:30]} {[%emt 00:08:39]} 26. f3 {[%clk 00:30:36]}
{[%emt 00:02:14]} Qb4+ {[%clk 00:26:28]} {[%emt 00:00:31]} 27. Kf1 {[%clk
00:30:25]} {[%emt 00:00:41]} Rd2 {[%clk 00:25:53]} {[%emt 00:01:05]} 28. Qc4
{[%clk 00:27:55]} {[%emt 00:03:00]} Qxc4+ {[%clk 00:25:48]} {[%emt 00:00:35]}
29. Rxc4 {[%clk 00:28:20]} {[%emt 00:00:06]} Rd1+ {[%clk 00:26:08]} {[%emt
00:00:09]} 30. Ke2 {[%clk 00:28:22]} {[%emt 00:00:28]} Rxh1 {[%clk 00:26:29]}
{[%emt 00:00:08]} 31. Nd6 {[%clk 00:28:15]} {[%emt 00:00:38]} Re7 {[%clk
00:26:17]} {[%emt 00:00:41]} 32. Nc8 {[%clk 00:28:14]} {[%emt 00:00:32]} Rc7
{[%clk 00:26:25]} {[%emt 00:00:22]} 33. Nxa7 {[%clk 00:27:28]} {[%emt
00:01:16]} Nd7 {[%clk 00:26:34]} {[%emt 00:00:21]} 34. c6 {[%clk 00:27:07]}
{[%emt 00:00:52]} bxc6 {[%clk 00:26:24]} {[%emt 00:00:40]} 35. Nxc6 {[%clk
00:27:30]} {[%emt 00:00:06]} Nb8 {[%clk 00:25:33]} {[%emt 00:01:21]} 36. Ne7+
{[%clk 00:27:08]} {[%emt 00:00:52]} Rxe7 {[%clk 00:25:52]} {[%emt 00:00:11]} 37.
Rc8+ {[%clk 00:27:34]} {[%emt 00:00:04]} Kh7 {[%clk 00:25:45]} {[%emt
00:00:37]} 38. Rxb8 {[%clk 00:27:54]} {[%emt 00:00:11]} Ra7 {[%clk 00:26:08]}
{[%emt 00:00:07]} 39. Rb2 {[%clk 00:27:24]} {[%emt 00:00:59]} Ra1 {[%clk
00:26:17]} {[%emt 00:00:21]} 40. f4 {[%clk 00:27:21]} {[%emt 00:00:34]} R1xa2
{[%clk 00:26:31]} {[%emt 00:00:16]} 41. Rxa2 {[%clk 00:27:46]} {[%emt
00:00:05]} Rxa2+ {[%clk 00:26:51]} {[%emt 00:00:09]} 42. Kf3 {[%clk 00:28:08]}
{[%emt 00:00:07]} g6 {[%clk 00:26:46]} {[%emt 00:00:36]} 43. f5 {[%clk
00:28:19]} {[%emt 00:00:19]} Kg7 {[%clk 00:26:32]} {[%emt 00:00:44]} 44. fxg6
{[%clk 00:28:35]} {[%emt 00:00:14]} Kxg6 {[%clk 00:26:51]} {[%emt 00:00:10]} 45.
Kg3 {[%clk 00:28:34]} {[%emt 00:00:32]} Kg5 {[%clk 00:27:09]} {[%emt 00:00:12]}
46. Kh3 {[%clk 00:28:48]} {[%emt 00:00:16]} Ra3 {[%clk 00:27:22]} {[%emt
00:00:17]} 47. g3 {[%clk 00:29:00]} {[%emt 00:00:18]} Rxe3 {[%clk 00:27:47]}
{[%emt 00:00:05]} 48. Kh2 {[%clk 00:29:12]} {[%emt 00:00:18]} Kxg4 {[%clk
00:27:55]} {[%emt 00:00:22]} 49. Kg2 {[%clk 00:29:31]} {[%emt 00:00:11]} Rxg3+
{[%clk 00:28:02]} {[%emt 00:00:23]} 50. Kh1 {[%clk 00:28:59]} {[%emt 00:01:02]}
Kf3 {[%clk 00:28:11]} {[%emt 00:00:20]} 51. Kh2 {[%clk 00:29:13]} {[%emt
00:00:17]} Kf2 {[%clk 00:28:36]} {[%emt 00:00:05]} 52. Kh1 {[%clk 00:29:30]}
{[%emt 00:00:13]} Rh3+ {[%clk 00:28:57]} {[%emt 00:00:08]} 0-1

[Event "NJSK 2026 Meisjes C"]
[Site "Helmond, Netherlands"]
[Date "2026.04.30"]
[Round "6.4"]
[White "De Koning, Mila"]
[Black "Gnanasekaran, Keerthi"]
[Result "1-0"]
[TimeControl "90min/40moves + 30min + 30sec/move"]
[WhiteTitle "-"]
[BlackTitle "-"]
[WhiteFideId "40108694"]
[BlackFideId "40110508"]
[WhiteElo "1638"]
[BlackElo "1647"]

1. e4 {[%clk 01:30:56]} {[%emt 00:00:04]} e5 {[%clk 01:30:57]} {[%emt
00:00:04]} 2. Nc3 {[%clk 01:31:21]} {[%emt 00:00:05]} Nc6 {[%clk 01:31:15]}
{[%emt 00:00:11]} 3. Bc4 {[%clk 01:31:44]} {[%emt 00:00:08]} Bc5 {[%clk
01:31:34]} {[%emt 00:00:13]} 4. Qg4 {[%clk 01:32:02]} {[%emt 00:00:09]} g6
{[%clk 01:27:25]} {[%emt 00:04:37]} 5. Qf3 {[%clk 01:31:37]} {[%emt 00:00:57]}
Nf6 {[%clk 01:25:38]} {[%emt 00:02:16]} 6. Nge2 {[%clk 01:30:25]} {[%emt
00:01:43]} d6 {[%clk 01:25:43]} {[%emt 00:00:24]} 7. h3 {[%clk 01:30:04]}
{[%emt 00:00:51]} a6 {[%clk 01:19:03]} {[%emt 00:07:10]} 8. d3 {[%clk
01:29:39]} {[%emt 00:00:56]} h6 {[%clk 01:17:33]} {[%emt 00:01:59]} 9. O-O
{[%clk 01:24:43]} {[%emt 00:05:25]} Na5 {[%clk 01:11:22]} {[%emt 00:06:41]} 10.
Nd5 {[%clk 01:08:07]} {[%emt 00:17:07]} Nxd5 {[%clk 01:07:53]} {[%emt
00:03:59]} 11. Bxd5 {[%clk 01:05:29]} {[%emt 00:03:08]} Be6 {[%clk 01:01:16]}
{[%emt 00:07:04]} 12. Bxe6 {[%clk 01:04:11]} {[%emt 00:01:51]} fxe6 {[%clk
01:01:29]} {[%emt 00:00:18]} 13. Qg4 {[%clk 01:00:39]} {[%emt 00:04:01]} Qf6
{[%clk 00:59:09]} {[%emt 00:02:49]} 14. Be3 {[%clk 00:53:00]} {[%emt 00:08:10]}
h5 {[%clk 00:53:32]} {[%emt 00:06:05]} 15. Qg3 {[%clk 00:51:28]} {[%emt
00:02:05]} Bxe3 {[%clk 00:51:38]} {[%emt 00:02:23]} 16. fxe3 {[%clk 00:51:01]}
{[%emt 00:00:58]} Qg7 {[%clk 00:51:52]} {[%emt 00:00:15]} 17. Qg5 {[%clk
00:49:34]} {[%emt 00:01:57]} Rg8 {[%clk 00:45:48]} {[%emt 00:06:33]} 18. Rf6
{[%clk 00:42:45]} {[%emt 00:07:20]} Kd7 {[%clk 00:45:49]} {[%emt 00:00:28]} 19.
Raf1 {[%clk 00:41:33]} {[%emt 00:01:43]} Raf8 {[%clk 00:45:23]} {[%emt
00:00:55]} 20. Rxf8 {[%clk 00:41:10]} {[%emt 00:00:55]} Rxf8 {[%clk 00:45:50]}
{[%emt 00:00:02]} 21. Rxf8 {[%clk 00:41:22]} {[%emt 00:00:19]} Qxf8 {[%clk
00:46:16]} {[%emt 00:00:02]} 22. Qxg6 {[%clk 00:40:41]} {[%emt 00:01:12]} Qe8
{[%clk 00:45:29]} {[%emt 00:01:16]} 23. Qh7+ {[%clk 00:39:22]} {[%emt
00:01:51]} Kc8 {[%clk 00:44:08]} {[%emt 00:01:48]} 24. b3 {[%clk 00:36:13]}
{[%emt 00:03:42]} Nc6 {[%clk 00:43:36]} {[%emt 00:01:01]} 25. a3 {[%clk
00:34:43]} {[%emt 00:02:00]} Ne7 {[%clk 00:42:41]} {[%emt 00:01:24]} 26. Ng3
{[%clk 00:30:01]} {[%emt 00:05:13]} Kd7 {[%clk 00:39:28]} {[%emt 00:03:42]} 27.
Nxh5 {[%clk 00:29:17]} {[%emt 00:01:15]} Qg6 {[%clk 00:39:32]} {[%emt
00:00:24]} 28. Qxg6 {[%clk 00:29:07]} {[%emt 00:00:42]} Nxg6 {[%clk 00:39:55]}
{[%emt 00:00:07]} 29. Kf2 {[%clk 00:28:43]} {[%emt 00:00:56]} d5 {[%clk
00:40:03]} {[%emt 00:00:21]} 30. exd5 {[%clk 00:27:15]} {[%emt 00:01:58]} exd5
{[%clk 00:40:25]} {[%emt 00:00:08]} 31. g4 {[%clk 00:26:48]} {[%emt 00:00:56]}
Ke6 {[%clk 00:40:43]} {[%emt 00:00:11]} 32. Ng7+ {[%clk 00:26:46]} {[%emt
00:00:32]} Kf7 {[%clk 00:40:54]} {[%emt 00:00:20]} 33. Nf5 {[%clk 00:26:35]}
{[%emt 00:00:41]} b5 {[%clk 00:39:44]} {[%emt 00:01:38]} 34. Kf3 {[%clk
00:25:29]} {[%emt 00:01:39]} c5 {[%clk 00:39:32]} {[%emt 00:00:39]} 35. Kg3
{[%clk 00:23:34]} {[%emt 00:02:26]} d4 {[%clk 00:39:30]} {[%emt 00:00:32]} 36.
exd4 {[%clk 00:22:57]} {[%emt 00:01:08]} exd4 {[%clk 00:39:49]} {[%emt
00:00:11]} 37. b4 {[%clk 00:22:55]} {[%emt 00:00:32]} c4 {[%clk 00:39:09]}
{[%emt 00:01:10]} 38. dxc4 {[%clk 00:22:41]} {[%emt 00:00:45]} bxc4 {[%clk
00:39:29]} {[%emt 00:00:10]} 39. Nxd4 {[%clk 00:22:33]} {[%emt 00:00:38]} Ne7
{[%clk 00:39:11]} {[%emt 00:00:47]} 40. Nf3 {[%clk 00:22:30]} {[%emt 00:00:34]}
c3 {[%clk 00:38:35]} {[%emt 00:01:05]} 41. Ng5+ {[%clk 00:22:42]} {[%emt
00:00:18]} Kg6 {[%clk 00:38:46]} {[%emt 00:00:19]} 42. Ne4 {[%clk 00:22:40]}
{[%emt 00:00:33]} Nd5 {[%clk 00:38:54]} {[%emt 00:00:21]} 43. Kf3 {[%clk
00:22:53]} {[%emt 00:00:18]} Kh6 {[%clk 00:38:49]} {[%emt 00:00:32]} 44. h4
{[%clk 00:22:45]} {[%emt 00:00:40]} Kg6 {[%clk 00:39:07]} {[%emt 00:00:13]} 45.
Nc5 {[%clk 00:22:46]} {[%emt 00:00:28]} Nc7 {[%clk 00:39:12]} {[%emt 00:00:25]}
46. Ke4 {[%clk 00:22:48]} {[%emt 00:00:28]} Nb5 {[%clk 00:39:06]} {[%emt
00:00:36]} 47. Nxa6 {[%clk 00:22:15]} {[%emt 00:01:03]} Nxa3 {[%clk 00:39:30]}
{[%emt 00:00:04]} 48. Kd3 {[%clk 00:22:30]} {[%emt 00:00:16]} Nb5 {[%clk
00:39:48]} {[%emt 00:00:12]} 49. Nc5 {[%clk 00:22:31]} {[%emt 00:00:29]} Kh6
{[%clk 00:39:23]} {[%emt 00:00:54]} 50. Kc4 {[%clk 00:22:35]} {[%emt 00:00:27]}
Nd6+ {[%clk 00:39:25]} {[%emt 00:00:28]} 51. Kxc3 {[%clk 00:22:34]} {[%emt
00:00:31]} Kg6 {[%clk 00:39:35]} {[%emt 00:00:20]} 52. Kd4 {[%clk 00:22:41]}
{[%emt 00:00:23]} Kf6 {[%clk 00:39:37]} {[%emt 00:00:29]} 53. Ne4+ {[%clk
00:22:37]} {[%emt 00:00:34]} Nxe4 {[%clk 00:40:01]} {[%emt 00:00:06]} 54. Kxe4
{[%clk 00:22:59]} {[%emt 00:00:07]} Kg6 {[%clk 00:40:26]} {[%emt 00:00:05]} 55.
b5 {[%clk 00:23:05]} {[%emt 00:00:24]} Kf6 {[%clk 00:40:52]} {[%emt 00:00:05]}
56. b6 {[%clk 00:23:30]} {[%emt 00:00:06]} Kg6 {[%clk 00:41:18]} {[%emt
00:00:03]} 57. b7 {[%clk 00:23:55]} {[%emt 00:00:05]} Kf6 {[%clk 00:41:46]}
{[%emt 00:00:02]} 58. b8=Q {[%clk 00:24:12]} {[%emt 00:00:13]} Kg6 {[%clk
00:42:12]} {[%emt 00:00:03]} 59. Qf8 {[%clk 00:24:16]} {[%emt 00:00:26]} Kh7
{[%clk 00:42:37]} {[%emt 00:00:06]} 60. Ke5 {[%clk 00:24:22]} {[%emt 00:00:24]}
Kg6 {[%clk 00:43:01]} {[%emt 00:00:05]} 61. Qg8+ {[%clk 00:24:17]} {[%emt
00:00:35]} Kh6 {[%clk 00:43:24]} {[%emt 00:00:07]} 62. Qg5+ {[%clk 00:24:38]}
{[%emt 00:00:10]} Kh7 {[%clk 00:43:48]} {[%emt 00:00:06]} 63. Kf6 {[%clk
00:24:57]} {[%emt 00:00:11]} Kh8 {[%clk 00:44:17]} {[%emt 00:00:02]} 64. Qg7#
{[%clk 00:24:44]} {[%emt 00:00:13]} 1-0

[Event "NJSK 2026 Meisjes C"]
[Site "Helmond, Netherlands"]
[Date "2026.04.30"]
[Round "6.5"]
[White "Bakker, Hannah"]
[Black "Oruc, Siraz"]
[Result "0-1"]
[TimeControl "90min/40moves + 30min + 30sec/move"]
[WhiteTitle "-"]
[BlackTitle "-"]
[WhiteFideId "40107671"]
[BlackFideId "40125874"]
[WhiteElo "1634"]
[BlackElo "1706"]

1. e4 {[%clk 01:30:57]} {[%emt 00:00:02]} e5 {[%clk 01:30:52]} {[%emt
00:00:09]} 2. Nf3 {[%clk 01:31:15]} {[%emt 00:00:12]} Nc6 {[%clk 01:31:11]}
{[%emt 00:00:13]} 3. Bc4 {[%clk 01:30:43]} {[%emt 00:00:59]} Bc5 {[%clk
01:31:28]} {[%emt 00:00:14]} 4. c3 {[%clk 01:28:53]} {[%emt 00:02:20]} Nf6
{[%clk 01:31:34]} {[%emt 00:00:23]} 5. d4 {[%clk 01:28:57]} {[%emt 00:00:26]}
exd4 {[%clk 01:31:40]} {[%emt 00:00:25]} 6. e5 {[%clk 01:28:50]} {[%emt
00:00:37]} d5 {[%clk 01:31:33]} {[%emt 00:00:37]} 7. Bb5 {[%clk 01:28:21]}
{[%emt 00:00:59]} Ne4 {[%clk 01:30:31]} {[%emt 00:01:32]} 8. cxd4 {[%clk
01:28:06]} {[%emt 00:00:45]} Bb6 {[%clk 01:29:49]} {[%emt 00:01:12]} 9. Nc3
{[%clk 01:25:34]} {[%emt 00:03:02]} O-O {[%clk 01:28:20]} {[%emt 00:01:59]} 10.
h3 {[%clk 01:23:19]} {[%emt 00:02:45]} Bf5 {[%clk 01:22:24]} {[%emt 00:06:24]}
11. O-O {[%clk 01:18:31]} {[%emt 00:05:18]} a6 {[%clk 01:16:56]} {[%emt
00:05:59]} 12. Ba4 {[%clk 01:12:08]} {[%emt 00:06:52]} h6 {[%clk 01:04:19]}
{[%emt 00:13:07]} 13. Be3 {[%clk 01:06:30]} {[%emt 00:06:08]} f6 {[%clk
01:00:15]} {[%emt 00:04:35]} 14. Bxc6 {[%clk 00:58:08]} {[%emt 00:08:52]} bxc6
{[%clk 00:57:13]} {[%emt 00:03:31]} 15. Rc1 {[%clk 00:54:31]} {[%emt 00:04:07]}
Qd7 {[%clk 00:48:00]} {[%emt 00:09:44]} 16. Re1 {[%clk 00:44:53]} {[%emt
00:10:07]} Rae8 {[%clk 00:41:43]} {[%emt 00:06:47]} 17. exf6 {[%clk 00:37:09]}
{[%emt 00:08:14]} Rxf6 {[%clk 00:40:54]} {[%emt 00:01:19]} 18. Ne5 {[%clk
00:34:32]} {[%emt 00:03:07]} Qd6 {[%clk 00:29:47]} {[%emt 00:11:37]} 19. f3
{[%clk 00:27:01]} {[%emt 00:08:00]} Nxc3 {[%clk 00:24:31]} {[%emt 00:05:46]} 20.
bxc3 {[%clk 00:26:12]} {[%emt 00:01:19]} c5 {[%clk 00:20:18]} {[%emt 00:04:44]}
21. Qa4 {[%clk 00:18:09]} {[%emt 00:08:32]} Rfe6 {[%clk 00:13:39]} {[%emt
00:07:08]} 22. Qxa6 {[%clk 00:15:56]} {[%emt 00:02:44]} cxd4 {[%clk 00:07:41]}
{[%emt 00:06:28]} 23. cxd4 {[%clk 00:11:53]} {[%emt 00:04:33]} Bxd4 {[%clk
00:06:37]} {[%emt 00:01:34]} 24. Qxd6 {[%clk 00:11:50]} {[%emt 00:00:33]} Bxe3+
{[%clk 00:05:37]} {[%emt 00:01:31]} 25. Rxe3 {[%emt 00:00:36]} cxd6 {[%clk
00:05:47]} 26. g4 {[%clk 00:05:39]} {[%emt 00:06:53]} Bh7 {[%clk 00:05:06]}
{[%emt 00:01:11]} 27. f4 {[%clk 00:05:18]} {[%emt 00:00:52]} dxe5 {[%clk
00:05:06]} {[%emt 00:00:29]} 28. fxe5 {[%clk 00:04:56]} {[%emt 00:00:52]} Rxe5
{[%clk 00:05:17]} {[%emt 00:00:19]} 29. Rxe5 {[%clk 00:05:06]} {[%emt
00:00:20]} Rxe5 {[%clk 00:05:38]} {[%emt 00:00:08]} 30. Rc5 {[%clk 00:05:04]}
{[%emt 00:00:34]} Be4 {[%clk 00:04:43]} {[%emt 00:01:24]} 31. a4 {[%clk
00:04:56]} {[%emt 00:00:38]} Re6 {[%clk 00:03:53]} {[%emt 00:01:20]} 32. a5
{[%clk 00:04:25]} {[%emt 00:01:01]} Ra6 {[%clk 00:02:53]} {[%emt 00:01:30]} 33.
Kf2 {[%clk 00:03:55]} {[%emt 00:01:00]} Kf7 {[%clk 00:02:08]} {[%emt 00:01:16]}
34. Ke3 {[%clk 00:03:52]} {[%emt 00:00:33]} Ke6 {[%clk 00:01:50]} {[%emt
00:00:48]} 35. Kd4 {[%clk 00:03:39]} {[%emt 00:00:42]} Kd6 {[%clk 00:01:52]}
{[%emt 00:00:27]} 36. h4 {[%clk 00:03:30]} {[%emt 00:00:40]} g6 {[%clk
00:01:42]} {[%emt 00:00:40]} 37. Rb5 {[%clk 00:03:03]} {[%emt 00:00:57]} Kc6
{[%clk 00:01:46]} {[%emt 00:00:26]} 38. Rc5+ {[%clk 00:03:07]} {[%emt
00:00:26]} Kd6 {[%clk 00:01:29]} {[%emt 00:00:47]} 39. Rb5 {[%clk 00:02:52]}
{[%emt 00:00:45]} g5 {[%clk 00:00:52]} {[%emt 00:01:07]} 40. hxg5 {[%clk
00:02:56]} {[%emt 00:00:26]} hxg5 {[%clk 00:01:11]} {[%emt 00:00:12]} 41. Rc5
{[%clk 00:03:16]} {[%emt 00:00:10]} Rc6 {[%clk 00:29:33]} {[%emt 00:02:07]} 42.
Rb5 {[%clk 00:33:29]} {[%emt 00:00:17]} Rc4+ {[%clk 00:28:53]} {[%emt
00:01:11]} 43. Ke3 {[%clk 00:33:32]} {[%emt 00:00:26]} Ra4 {[%clk 00:28:35]}
{[%emt 00:00:48]} 44. Rb6+ {[%clk 00:32:18]} {[%emt 00:01:44]} Kc5 {[%clk
00:26:25]} {[%emt 00:02:41]} 45. Rb8 {[%clk 00:31:53]} {[%emt 00:00:54]} Rxa5
{[%clk 00:25:48]} {[%emt 00:01:08]} 46. Rg8 {[%clk 00:32:11]} {[%emt 00:00:11]}
Ra3+ {[%clk 00:25:32]} {[%emt 00:00:46]} 47. Ke2 {[%clk 00:32:33]} {[%emt
00:00:08]} Rg3 {[%clk 00:23:59]} {[%emt 00:02:03]} 48. Rxg5 {[%clk 00:32:48]}
{[%emt 00:00:15]} Bf3+ {[%clk 00:23:17]} {[%emt 00:01:12]} 49. Kf2 {[%clk
00:30:09]} {[%emt 00:03:10]} Rxg4 {[%clk 00:22:47]} {[%emt 00:00:59]} 50. Rxg4
{[%clk 00:29:01]} {[%emt 00:01:38]} Bxg4 {[%clk 00:23:10]} {[%emt 00:00:06]} 51.
Ke3 {[%clk 00:29:27]} {[%emt 00:00:05]} Kc4 {[%clk 00:23:25]} {[%emt 00:00:15]}
52. Kd2 {[%clk 00:29:46]} {[%emt 00:00:12]} Kd4 {[%clk 00:23:22]} {[%emt
00:00:32]} 53. Kc2 {[%clk 00:29:51]} {[%emt 00:00:24]} Ke3 {[%clk 00:23:36]}
{[%emt 00:00:17]} 0-1